[Event "Niedersachsen-ch A 2024"]
[Site "Verden Aller"]
[Date "2024.01.04"]
[Round "1.10"]
[White "Behn, Cord"]
[Black "Jacobi, Felix-Hagen"]
[Result "0-1"]
[ECO "A41"]
[WhiteElo "1837"]
[BlackElo "2056"]
[Annotator "RC"]
[PlyCount "88"]
[EventDate "2024.01.01"]
[EventType "swiss"]
[EventCountry "GER"]
[SourceTitle "playchess.com"]
[Source "ChessBase"]
[SourceQuality "1"]
[TimeControl "40/5400+30:1800+30"]

1. c4 {[%emt 0:00:04]} e5 {[%emt 1:31:00]} 2. Nc3 {[%emt 1:31:26]} Nc6 {[%emt 0:00:30]} 3. Nf3 {[%emt 0:00:30]} d6 {[%emt 0:00:30]} 4. d4 {[%emt 0:00:30]} Bg4 {[%emt 0:00:00]} 5. dxe5 {[%emt 0:00:30]} dxe5 {[%emt 0:01:00]} 6. Qxd8+ {[%emt 0:00:00]} Rxd8 {[%emt 0:00:30]} 7. Bd2 {[%emt 0:01:00]} Bb4 {[%emt 0:00:30]} 8. O-O-O {[%emt 0:00:00]} Nge7 {[%emt 0:00:30]} 9. a3 {[%emt 0:01:00]} Bxc3 {[%emt 0:00:00]} 10. Bxc3 {[%emt 0:00:00]} Rxd1+ {[%emt 0:00:00]} 11. Kxd1 {[%emt 0:01:00]} f6 {[%emt 0:01:30]} 12. h3 {[%emt 0:00:00]} Be6 {[%emt 0:00:00]} 13. e3 {[%emt 0:00:00]} Kf7 {[%emt 0:01:00]} 14. Kc2 {[%emt 0:01:30]} Bf5+ {[%emt 0:00:30]} 15. Kc1 {[%emt 0:00:00]} Rd8 {[%emt 0:00:30]} 16. Be2 {[%emt 0:01:00]} Nc8 {[%emt 0:00:30]} 17. c5 {[%emt 0:00:30]} a6 {[%emt 0:00:30]} 18. Bc4+ {[%emt 0:00:30]} Be6 {[%emt 0:00:00]} 19. Bxe6+ {[%emt 0:00:00]} Kxe6 {[%emt 0:00:00]} 20. Rd1 {[%emt 0:01:00]} Rxd1+ {[%emt 0:00:00]} 21. Kxd1 {[%emt 0:00:30]} Kd5 {[%emt 0:00:00]} 22. b4 {[%emt 0:00:30]} a5 {[%emt 0:00:00]} 23. Nd2 {[%emt 0:00:00]} axb4 {[%emt 0:00:00]} 24. axb4 {[%emt 0:00:00]} N8a7 {[%emt 0:00:00]} 25. Kc2 {[%emt 0:00:00]} Nb5 {[%emt 0:00:00]} 26. Kb3 {[%emt 0:02:00]} Ne7 {[%emt 0:00:00]} 27. e4+ {[%emt 0:00:00]} Kc6 {[%emt 0:00:00]} 28. Bb2 {[%emt 0:00:00]} Ng6 {[%emt 0:05:30]} 29. g3 {[%emt 0:00:00]} Nf8 {[%emt 0:00:00]} 30. Kc4 {[%emt 0:02:00]} Ne6 {[%emt 0:00:00]} 31. Nf3 {[%emt 0:00:00]} b6 {[%emt 0:00:00]} 32. Bxe5 {[%emt 0:00:00]} bxc5 {[%emt 0:00:00]} 33. Bc3 {[%emt 0:00:00]} Nd6+ {[%emt 0:00:00]} 34. Kd3 {[%emt 0:02:00]} c4+ {[%emt 0:00:00]} 35. Ke3 {[%emt 0:00:00]} Nb5 {[%emt 0:00:00]} 36. Bb2 {[%emt 0:00:00]} Kd6 {[%emt 0:00:00]} 37. e5+ {[%emt 0:00:27]} fxe5 {[%emt 0:00:00]} 38. Bxe5+ {[%emt 0:00:07]} Kd5 {[%emt 0:00:00]} 39. Bb2 {[%emt 0:01:01]} c3 {[%emt 0:00:00]} 40. Bc1 {[%emt 0:00:06]} Kc4 {[%emt 0:06:00]} 41. Ne5+ {[%emt 0:02:28]} Kxb4 {[%emt 0:00:00]} 42. f4 {[%emt 0:00:08]} Kb3 {[%emt 0:00:00]} 43. f5 {[%emt 0:03:10]} Ned4 {[%emt 0:00:00]} 44. Ke4 {[%emt 0:00:43]} Ne2 {[%emt 0:00:00]} 0-1

[Event "Niedersachsen-ch A 2024"]
[Site "Verden Aller"]
[Date "2024.01.04"]
[Round "1.12"]
[White "Aden, Keno"]
[Black "Miljkovic, Jovana"]
[Result "0-1"]
[ECO "E04"]
[WhiteElo "1832"]
[BlackElo "2035"]
[Annotator "RC"]
[PlyCount "106"]
[EventDate "2024.01.01"]
[EventType "swiss"]
[EventCountry "GER"]
[SourceTitle "playchess.com"]
[Source "ChessBase"]
[SourceQuality "1"]
[TimeControl "40/5400+30:1800+30"]

1. d4 {[%emt 0:00:03]} Nf6 {[%emt 0:00:05]} 2. Nf3 {[%emt 0:00:03]} d5 {[%emt 0:00:30]} 3. c4 {[%emt 0:00:06]} e6 {[%emt 0:00:38]} 4. g3 {[%emt 0:00:07]} dxc4 {[%emt 0:00:18]} 5. Bg2 {[%emt 0:00:05]} a6 {[%emt 0:00:06]} 6. a4 {[%emt 0:00:26]} Nc6 {[%emt 0:00:42]} 7. O-O {[%emt 0:00:32]} Rb8 {[%emt 0:01:42]} 8. Na3 {[%emt 0:26:53]} b5 {[%emt 0:10:42]} 9. Bg5 {[%emt 0:12:28]} Bxa3 {[%emt 0:05:05]} 10. bxa3 {[%emt 0:02:51]} h6 {[%emt 0:02:17]} 11. Bxf6 {[%emt 0:12:29]} Qxf6 {[%emt 0:07:52]} 12. e3 {[%emt 0:01:28]} O-O {[%emt 0:01:59]} 13. Qc2 {[%emt 0:00:31]} e5 {[%emt 0:03:50]} 14. d5 {[%emt 0:05:19]} Bf5 {[%emt 0:09:56]} 15. Qc3 {[%emt 0:13:15]} Be4 {[%emt 0:05:34]} 16. Nd2 {[%emt 0:05:50]} Bxg2 {[%emt 0:01:39]} 17. Kxg2 {[%emt 0:00:02]} Ne7 {[%emt 0:01:22]} 18. e4 {[%emt 0:05:00]} c6 {[%emt 0:06:04]} 19. dxc6 {[%emt 0:01:41]} Nxc6 {[%emt 0:00:11]} 20. axb5 {[%emt 0:00:43]} axb5 {[%emt 0:00:08]} 21. a4 {[%emt 0:00:21]} b4 {[%emt 0:05:12]} 22. Qxc4 {[%emt 0:00:39]} Nd4 {[%emt 0:01:30]} 23. Rfc1 {[%emt 0:02:10]} b3 {[%emt 0:08:53]} 24. Rab1 {[%emt 0:03:30]} Rb6 {[%emt 0:01:45]} 25. Rc3 {[%emt 0:02:30]} Qg6 {[%emt 0:07:59]} 26. f3 {[%emt 0:02:28]} Rc6 {[%emt 0:01:26]} 27. Qd3 {[%emt 0:00:19]} Rxc3 {[%emt 0:00:59]} 28. Qxc3 {[%emt 0:00:03]} Qa6 {[%emt 0:01:38]} 29. Qc4 {[%emt 0:01:29]} Qxc4 {[%emt 0:01:21]} 30. Nxc4 {[%emt 0:00:01]} Rc8 {[%emt 0:03:28]} 31. Ne3 {[%emt 0:01:32]} Ra8 {[%emt 0:01:54]} 32. f4 {[%emt 0:01:00]} exf4 {[%emt 0:00:29]} 33. gxf4 {[%emt 0:00:02]} Rxa4 {[%emt 0:00:08]} 34. Rb2 {[%emt 0:01:00]} Ra2 {[%emt 0:01:54]} 35. Nc4 {[%emt 0:00:23]} Rxb2+ {[%emt 0:02:50]} 36. Nxb2 {[%emt 0:00:07]} Kf8 {[%emt 0:00:56]} 37. Kf2 {[%emt 0:00:20]} Ke7 {[%emt 0:00:35]} 38. Ke3 {[%emt 0:00:53]} Ne6 {[%emt 0:00:36]} 39. h4 {[%emt 0:00:37]} g6 {[%emt 0:01:40]} 40. Nd3 {[%emt 0:00:32]} Kd6 {[%emt 0:00:42]} 41. Kd2 {[%emt 0:06:40]} Nc5 {[%emt 0:02:15]} 42. Nf2 {[%emt 0:03:00]} h5 {[%emt 0:06:31]} 43. Kc3 {[%emt 0:04:51]} Kc6 {[%emt 0:01:05]} 44. Nd1 {[%emt 0:12:47]} Nxe4+ {[%emt 0:01:18]} 45. Kxb3 {[%emt 0:00:04]} Nd2+ {[%emt 0:00:11]} 46. Kc3 {[%emt 0:00:13]} Nf3 {[%emt 0:00:10]} 47. Kd3 {[%emt 0:00:19]} Nxh4 {[%emt 0:00:21]} 48. Ne3 {[%emt 0:00:53]} Nf5 {[%emt 0:01:50]} 49. Nc4 {[%emt 0:00:21]} Kd5 {[%emt 0:00:27]} 50. Ne5 {[%emt 0:00:37]} Ke6 {[%emt 0:00:29]} 51. Ke4 {[%emt 0:00:20]} Nd6+ {[%emt 0:00:14]} 52. Kf3 {[%emt 0:00:20]} g5 {[%emt 0:01:10]} 53. Nd3 {[%emt 0:01:07]} g4+ {[%emt 0:00:26]} 0-1

[Event "Niedersachsen-ch A 2024"]
[Site "Verden Aller"]
[Date "2024.01.04"]
[Round "1.13"]
[White "Witthaus, Joerg"]
[Black "Wilmink, Anna"]
[Result "1/2-1/2"]
[ECO "B22"]
[WhiteElo "2029"]
[BlackElo "1822"]
[Annotator "NA RC"]
[PlyCount "55"]
[EventDate "2024.01.01"]
[EventType "swiss"]
[EventCountry "GER"]
[SourceTitle "playchess.com"]
[Source "ChessBase"]
[SourceQuality "1"]
[TimeControl "40/5400+30:1800+30"]

1. e4 {[%emt 0:00:03]} c5 {[%emt 0:00:17]} 2. Nf3 {[%emt 0:00:10]} Nf6 {[%emt 0:00:15]} 3. e5 {[%emt 0:03:05]} Nd5 {[%emt 0:00:15]} 4. c3 {[%emt 0:00:32]} Nc6 {[%emt 0:01:37]} 5. Bc4 {[%emt 0:01:51]} e6 {[%emt 0:02:39]} 6. O-O {[%emt 0:01:30]} d6 {[%emt 0:02:35]} 7. d4 {[%emt 0:04:59]} dxe5 {[%emt 0:04:01]} 8. dxe5 {[%emt 0:00:47]} Be7 {[%emt 0:02:05]} 9. Qe2 {[%emt 0:03:20]} Qc7 {[%emt 0:06:03]} 10. Rd1 {[%emt 0:09:49]} Nb6 {[%emt 0:01:33]} 11. Bb3 {[%emt 0:03:02]} Nd7 {[%emt 0:05:52]} 12. Bf4 {[%emt 0:04:00]} a6 {[%emt 0:05:40]} 13. a4 {[%emt 0:06:46]} Qb6 {[%emt 0:08:32]} 14. Bc4 {[%emt 0:06:49]} h6 {[%emt 0:08:56]} 15. Na3 {[%emt 0:14:18]} Qc7 {[%emt 0:04:25]} 16. Bg3 {[%emt 0:03:09]} Nb6 {[%emt 0:06:07]} 17. Bb3 {[%emt 0:04:43]} Bd7 {[%emt 0:04:15]} 18. Nc4 {[%emt 0:02:39]} Nxc4 {[%emt 0:01:01]} 19. Bxc4 {[%emt 0:00:02]} Na5 {[%emt 0:03:27]} 20. Nd2 {[%emt 0:01:21]} Nxc4 {[%emt 0:06:13]} 21. Nxc4 {[%emt 0:00:24]} O-O {[%emt 0:01:06]} 22. Rxd7 {[%emt 0:09:58]} Qxd7 {[%emt 0:00:20]} 23. Nb6 {[%emt 0:00:06]} Qc6 {[%emt 0:01:16]} 24. Nxa8 {[%emt 0:00:32]} Rxa8 {[%emt 0:00:09]} 25. h3 {[%emt 0:01:26]} Rd8 {[%emt 0:03:43]} 26. Bf4 {[%emt 0:00:59]} c4 {[%emt 0:03:10]} 27. Qc2 {[%emt 0:03:12]} Rd5 {[%emt 0:01:56]} 28. b3 {[%emt 0:06:44]} 1/2-1/2

[Event "Niedersachsen-ch A 2024"]
[Site "Verden Aller"]
[Date "2024.01.04"]
[Round "1.15"]
[White "Martin, Dennis"]
[Black "Kelemen, Alexander"]
[Result "1/2-1/2"]
[ECO "E05"]
[WhiteElo "1991"]
[BlackElo "1817"]
[Annotator "NA RC"]
[PlyCount "83"]
[EventDate "2024.01.01"]
[EventType "swiss"]
[EventCountry "GER"]
[SourceTitle "playchess.com"]
[Source "ChessBase"]
[SourceQuality "1"]
[TimeControl "40/5400+30:1800+30"]

1. d4 {[%emt 0:00:02]} Nf6 {[%emt 0:00:40]} 2. c4 {[%emt 0:00:02]} e6 {[%emt 0:00:11]} 3. Nf3 {[%emt 0:00:02]} d5 {[%emt 0:00:20]} 4. g3 {[%emt 0:00:03]} Be7 {[%emt 0:02:51]} 5. Bg2 {[%emt 0:00:02]} O-O {[%emt 0:00:11]} 6. O-O {[%emt 0:00:02]} dxc4 {[%emt 0:00:09]} 7. a4 {[%emt 0:00:02]} Bd7 {[%emt 0:03:16]} 8. Qc2 {[%emt 0:00:04]} Bc6 {[%emt 0:00:30]} 9. Qxc4 {[%emt 0:00:04]} Bd5 {[%emt 0:01:45]} 10. Qc3 {[%emt 0:00:41]} Nbd7 {[%emt 0:07:34]} 11. Bf4 {[%emt 0:02:08]} c5 {[%emt 0:03:12]} 12. Rd1 {[%emt 0:01:00]} Rc8 {[%emt 0:05:49]} 13. Nbd2 {[%emt 0:05:24]} cxd4 {[%emt 0:17:52]} 14. Qxd4 {[%emt 0:00:06]} Bc5 {[%emt 0:00:31]} 15. Qd3 {[%emt 0:00:18]} Qe7 {[%emt 0:11:08]} 16. e4 {[%emt 0:04:27]} Bc6 {[%emt 0:00:13]} 17. h3 {[%emt 0:05:10]} e5 {[%emt 0:02:14]} 18. Be3 {[%emt 0:00:29]} Rfd8 {[%emt 0:01:31]} 19. Nh4 {[%emt 0:00:44]} Nf8 {[%emt 0:11:56]} 20. Qe2 {[%emt 0:00:31]} Bxe3 {[%emt 0:04:05]} 21. Qxe3 {[%emt 0:04:01]} g6 {[%emt 0:00:21]} 22. b3 {[%emt 0:02:55]} Ne6 {[%emt 0:01:45]} 23. Nc4 {[%emt 0:02:21]} Qc5 {[%emt 0:06:26]} 24. Re1 {[%emt 0:00:57]} Rd4 {[%emt 0:08:22]} 25. Rac1 {[%emt 0:03:15]} Rcd8 {[%emt 0:02:05]} 26. Nf3 {[%emt 0:04:00]} Rxe4 {[%emt 0:00:56]} 27. Qxc5 {[%emt 0:00:03]} Nxc5 {[%emt 0:04:10]} 28. Nfxe5 {[%emt 0:00:53]} Rxe1+ {[%emt 0:00:12]} 29. Rxe1 {[%emt 0:00:01]} Bxg2 {[%emt 0:00:11]} 30. Kxg2 {[%emt 0:00:02]} Nxb3 {[%emt 0:00:50]} 31. Rb1 {[%emt 0:00:11]} Nc5 {[%emt 0:00:13]} 32. Rb5 {[%emt 0:00:17]} b6 {[%emt 0:02:23]} 33. a5 {[%emt 0:00:12]} Nd5 {[%emt 0:01:17]} 34. axb6 {[%emt 0:00:52]} axb6 {[%emt 0:00:08]} 35. Nxb6 {[%emt 0:00:20]} Nxb6 {[%emt 0:00:07]} 36. Rxb6 {[%emt 0:00:31]} Re8 {[%emt 0:02:09]} 37. f4 {[%emt 0:01:16]} Re7 {[%emt 0:00:49]} 38. Rc6 {[%emt 0:01:03]} Ne6 {[%emt 0:00:28]} 39. Ng4 {[%emt 0:00:45]} Kg7 {[%emt 0:00:23]} 40. Rd6 {[%emt 0:00:58]} h5 {[%emt 0:00:36]} 41. Ne5 {[%emt 0:30:32]} h4 {[%emt 0:05:06]} 42. Rd7 {[%emt 0:00:00]} 1/2-1/2

[Event "Niedersachsen-ch A 2024"]
[Site "Verden Aller"]
[Date "2024.01.04"]
[Round "1.17"]
[White "Loecken, Siegfried"]
[Black "Stummeyer, Dieter"]
[Result "1-0"]
[ECO "B24"]
[WhiteElo "2014"]
[BlackElo "1804"]
[Annotator "NA RC"]
[PlyCount "79"]
[EventDate "2024.01.01"]
[EventType "swiss"]
[EventCountry "GER"]
[SourceTitle "playchess.com"]
[Source "ChessBase"]
[SourceQuality "1"]
[TimeControl "40/5400+30:1800+30"]

1. e4 {[%emt 0:00:05]} c5 {[%emt 0:00:09]} 2. Nc3 {[%emt 0:00:17]} Nc6 {[%emt 0:00:09]} 3. g3 {[%emt 0:00:08]} g6 {[%emt 0:00:29]} 4. Bg2 {[%emt 0:00:03]} Bg7 {[%emt 0:00:09]} 5. d3 {[%emt 0:00:09]} e5 {[%emt 0:00:42]} 6. Nge2 {[%emt 0:01:32]} Nge7 {[%emt 0:00:31]} 7. O-O {[%emt 0:00:34]} O-O {[%emt 0:00:41]} 8. Rb1 {[%emt 0:03:49]} d6 {[%emt 0:00:18]} 9. a3 {[%emt 0:04:07]} a5 {[%emt 0:03:01]} 10. Nb5 {[%emt 0:00:53]} Be6 {[%emt 0:03:02]} 11. c4 {[%emt 0:03:39]} f5 {[%emt 0:02:49]} 12. Nec3 {[%emt 0:01:03]} Rc8 {[%emt 0:02:38]} 13. Nd5 {[%emt 0:00:17]} h6 {[%emt 0:02:12]} 14. Bh3 {[%emt 0:02:27]} Nd4 {[%emt 0:02:01]} 15. Nxd4 {[%emt 0:00:28]} cxd4 {[%emt 0:01:16]} 16. b4 {[%emt 0:00:26]} Bxd5 {[%emt 0:03:20]} 17. exd5 {[%emt 0:01:08]} Rb8 {[%emt 0:02:42]} 18. bxa5 {[%emt 0:00:45]} Qxa5 {[%emt 0:00:33]} 19. Rb5 {[%emt 0:00:07]} Qc7 {[%emt 0:01:59]} 20. Qb3 {[%emt 0:00:45]} Kh7 {[%emt 0:01:38]} 21. Bd2 {[%emt 0:00:22]} Rf7 {[%emt 0:07:09]} 22. Rb1 {[%emt 0:00:18]} Ng8 {[%emt 0:01:29]} 23. Ba5 {[%emt 0:00:44]} Qe7 {[%emt 0:03:05]} 24. c5 {[%emt 0:01:04]} dxc5 {[%emt 0:03:48]} 25. d6 {[%emt 0:00:14]} Qf6 {[%emt 0:01:10]} 26. Bc7 {[%emt 0:00:38]} Re8 {[%emt 0:01:50]} 27. Rb6 {[%emt 0:03:16]} Rd7 {[%emt 0:01:15]} 28. Bg2 {[%emt 0:03:53]} e4 {[%emt 0:00:58]} 29. dxe4 {[%emt 0:01:50]} fxe4 {[%emt 0:00:03]} 30. Bh3 {[%emt 0:00:13]} Rf7 {[%emt 0:01:22]} 31. Rf1 {[%emt 0:02:33]} c4 {[%emt 0:01:01]} 32. Qxc4 {[%emt 0:01:32]} e3 {[%emt 0:02:08]} 33. fxe3 {[%emt 0:03:19]} Qe5 {[%emt 0:01:28]} 34. Rxf7 {[%emt 0:07:05]} Qxe3+ {[%emt 0:03:12]} 35. Kh1 {[%emt 0:00:53]} Nf6 {[%emt 0:01:14]} 36. Rxf6 {[%emt 0:11:08]} Bxf6 {[%emt 0:01:19]} 37. Qf7+ {[%emt 0:00:56]} Bg7 {[%emt 0:00:02]} 38. d7 {[%emt 0:46:50]} Rf8 {[%emt 0:00:40]} 39. Qxg6+ {[%emt 0:00:00]} Kh8 {[%emt 0:00:24]} 40. Rb1 {[%emt 0:00:00]} 1-0

[Event "Niedersachsen-ch A 2024"]
[Site "Verden Aller"]
[Date "2024.01.04"]
[Round "1.18"]
[White "Drygala, Lars"]
[Black "Weigand, Anton"]
[Result "1/2-1/2"]
[ECO "D02"]
[WhiteElo "1869"]
[BlackElo "2013"]
[Annotator "NA RC"]
[PlyCount "82"]
[EventDate "2024.01.01"]
[EventType "swiss"]
[EventCountry "GER"]
[SourceTitle "playchess.com"]
[Source "ChessBase"]
[SourceQuality "1"]
[TimeControl "40/5400+30:1800+30"]

1. d4 {[%emt 0:00:05]} d5 {[%emt 0:00:05]} 2. Nf3 {[%emt 0:00:08]} Nf6 {[%emt 0:00:06]} 3. Bf4 {[%emt 0:00:14]} c5 {[%emt 0:02:16]} 4. e3 {[%emt 0:01:41]} Nc6 {[%emt 0:00:23]} 5. Be2 {[%emt 0:02:48]} Qb6 {[%emt 0:05:57]} 6. b3 {[%emt 0:00:43]} e6 {[%emt 0:00:46]} 7. O-O {[%emt 0:00:50]} Ne4 {[%emt 0:15:32]} 8. c4 {[%emt 0:07:36]} cxd4 {[%emt 0:04:18]} 9. cxd5 {[%emt 0:08:49]} exd5 {[%emt 0:00:14]} 10. Nxd4 {[%emt 0:00:09]} Nxd4 {[%emt 0:20:04]} 11. Qxd4 {[%emt 0:00:19]} Qxd4 {[%emt 0:00:08]} 12. Bb5+ {[%emt 0:01:34]} Bd7 {[%emt 0:00:10]} 13. Bxd7+ {[%emt 0:00:06]} Kxd7 {[%emt 0:00:03]} 14. exd4 {[%emt 0:00:07]} Rc8 {[%emt 0:04:13]} 15. f3 {[%emt 0:03:45]} Nc3 {[%emt 0:03:31]} 16. Nxc3 {[%emt 0:02:24]} Rxc3 {[%emt 0:00:04]} 17. Rac1 {[%emt 0:01:04]} Bb4 {[%emt 0:03:52]} 18. a3 {[%emt 0:01:02]} Ba5 {[%emt 0:03:20]} 19. b4 {[%emt 0:02:32]} Rxc1 {[%emt 0:00:11]} 20. Rxc1 {[%emt 0:00:07]} Bb6 {[%emt 0:00:05]} 21. Be3 {[%emt 0:00:14]} Re8 {[%emt 0:01:17]} 22. Kf2 {[%emt 0:00:26]} f5 {[%emt 0:02:01]} 23. g3 {[%emt 0:01:29]} a6 {[%emt 0:01:54]} 24. a4 {[%emt 0:03:35]} Re6 {[%emt 0:02:24]} 25. Rc2 {[%emt 0:02:14]} g6 {[%emt 0:01:42]} 26. Rc1 {[%emt 0:07:27]} Re8 {[%emt 0:01:24]} 27. Rc2 {[%emt 0:01:46]} Bc7 {[%emt 0:01:41]} 28. Bf4 {[%emt 0:14:37]} Bxf4 {[%emt 0:01:34]} 29. gxf4 {[%emt 0:00:05]} Kd6 {[%emt 0:02:17]} 30. Rc3 {[%emt 0:01:20]} Rg8 {[%emt 0:05:12]} 31. h4 {[%emt 0:01:27]} Kd7 {[%emt 0:03:39]} 32. Rc2 {[%emt 0:02:22]} Rc8 {[%emt 0:03:45]} 33. Rxc8 {[%emt 0:02:55]} Kxc8 {[%emt 0:00:03]} 34. Kg3 {[%emt 0:00:30]} a5 {[%emt 0:02:08]} 35. b5 {[%emt 0:07:30]} Kd7 {[%emt 0:00:06]} 36. Kh3 {[%emt 0:00:27]} Ke6 {[%emt 0:01:00]} 37. Kg3 {[%emt 0:00:19]} Kf6 {[%emt 0:00:07]} 38. Kh3 {[%emt 0:00:06]} Kg7 {[%emt 0:00:08]} 39. Kg3 {[%emt 0:00:06]} Kh6 {[%emt 0:00:15]} 40. Kh3 {[%emt 0:00:14]} Kh5 {[%emt 0:00:31]} 41. Kg3 {[%emt 0:30:06]} Kh6 {[%emt 0:34:07]} 1/2-1/2

[Event "Niedersachsen-ch A 2024"]
[Site "Verden Aller"]
[Date "2024.01.04"]
[Round "1.19"]
[White "Kiesel, Lucas"]
[Black "Moerke, Niklas"]
[Result "1-0"]
[ECO "D37"]
[WhiteElo "1987"]
[BlackElo "1800"]
[Annotator "NA RC"]
[PlyCount "111"]
[EventDate "2024.01.01"]
[EventType "swiss"]
[EventCountry "GER"]
[SourceTitle "playchess.com"]
[Source "ChessBase"]
[SourceQuality "1"]
[TimeControl "40/5400+30:1800+30"]

1. d4 {[%emt 0:00:01]} d5 {[%emt 0:00:07]} 2. c4 {[%emt 0:00:03]} e6 {[%emt 0:00:05]} 3. Nf3 {[%emt 0:00:04]} Nf6 {[%emt 0:00:41]} 4. Nc3 {[%emt 0:00:05]} Be7 {[%emt 0:00:36]} 5. Bf4 {[%emt 0:01:27]} O-O {[%emt 0:02:45]} 6. a3 {[%emt 0:04:12]} c6 {[%emt 0:00:57]} 7. e3 {[%emt 0:00:20]} Nh5 {[%emt 0:00:28]} 8. Be5 {[%emt 0:11:48]} Nd7 {[%emt 0:02:11]} 9. Bd3 {[%emt 0:06:19]} dxc4 {[%emt 0:03:20]} 10. Bxc4 {[%emt 0:01:52]} Nxe5 {[%emt 0:00:42]} 11. dxe5 {[%emt 0:01:34]} Qxd1+ {[%emt 0:00:28]} 12. Rxd1 {[%emt 0:00:06]} g6 {[%emt 0:00:21]} 13. Nd4 {[%emt 0:04:07]} Ng7 {[%emt 0:00:36]} 14. g4 {[%emt 0:04:23]} Ne8 {[%emt 0:01:34]} 15. Ne4 {[%emt 0:04:27]} Nc7 {[%emt 0:00:53]} 16. g5 {[%emt 0:12:23]} c5 {[%emt 0:00:51]} 17. Nb5 {[%emt 0:00:50]} Nxb5 {[%emt 0:00:54]} 18. Bxb5 {[%emt 0:00:04]} a6 {[%emt 0:00:27]} 19. Bd7 {[%emt 0:04:51]} Rd8 {[%emt 0:00:49]} 20. Bxc8 {[%emt 0:00:06]} Raxc8 {[%emt 0:01:01]} 21. Ke2 {[%emt 0:11:08]} Rd5 {[%emt 0:01:16]} 22. f4 {[%emt 0:00:02]} Rcd8 {[%emt 0:00:18]} 23. Nc3 {[%emt 0:09:09]} Rxd1 {[%emt 0:00:46]} 24. Rxd1 {[%emt 0:00:04]} Rxd1 {[%emt 0:00:21]} 25. Nxd1 {[%emt 0:00:33]} h6 {[%emt 0:04:34]} 26. gxh6 {[%emt 0:06:56]} Kh7 {[%emt 0:02:22]} 27. Kd3 {[%emt 0:01:38]} Kxh6 {[%emt 0:00:37]} 28. a4 {[%emt 0:00:46]} g5 {[%emt 0:04:38]} 29. Nf2 {[%emt 0:01:46]} Kg6 {[%emt 0:05:43]} 30. Ne4 {[%emt 0:01:55]} g4 {[%emt 0:06:02]} 31. Nd6 {[%emt 0:01:53]} b6 {[%emt 0:01:21]} 32. e4 {[%emt 0:02:44]} f6 {[%emt 0:02:37]} 33. f5+ {[%emt 0:01:31]} exf5 {[%emt 0:00:27]} 34. exf5+ {[%emt 0:00:05]} Kg5 {[%emt 0:01:09]} 35. Nc8 {[%emt 0:01:51]} Bd8 {[%emt 0:01:58]} 36. e6 {[%emt 0:00:58]} Kxf5 {[%emt 0:02:19]} 37. e7 {[%emt 0:00:16]} Bxe7 {[%emt 0:00:13]} 38. Nxe7+ {[%emt 0:00:03]} Ke5 {[%emt 0:00:36]} 39. a5 {[%emt 0:01:14]} bxa5 {[%emt 0:01:48]} 40. Nc6+ {[%emt 0:00:07]} Kf4 {[%emt 0:01:59]} 41. Ke2 {[%emt 0:33:03]} f5 {[%emt 0:32:43]} 42. Nxa5 {[%emt 0:00:00]} Ke4 {[%emt 0:47:57]} 43. Nb3 {[%emt 0:00:00]} Kd5 {[%emt 0:00:00]} 44. Ke3 {[%emt 0:00:00]} f4+ {[%emt 0:00:00]} 45. Kxf4 {[%emt 0:00:00]} Kc4 {[%emt 0:00:00]} 46. Nxc5 {[%emt 0:00:00]} Kxc5 {[%emt 0:00:00]} 47. Kxg4 {[%emt 0:00:00]} Kb4 {[%emt 0:00:00]} 48. h4 {[%emt 0:00:00]} Kb3 {[%emt 0:00:00]} 49. h5 {[%emt 0:00:00]} a5 {[%emt 0:00:00]} 50. h6 {[%emt 0:00:00]} Kxb2 {[%emt 0:00:00]} 51. h7 {[%emt 0:00:00]} a4 {[%emt 0:00:00]} 52. h8=Q+ {[%emt 0:00:00]} Ka2 {[%emt 0:00:00]} 53. Qg8+ {[%emt 0:00:00]} Kb2 {[%emt 0:00:00]} 54. Qb8+ {[%emt 0:00:00]} Ka2 {[%emt 0:00:00]} 55. Qb4 {[%emt 0:00:00]} a3 {[%emt 0:00:00]} 56. Kf3 {[%emt 0:00:00]} 1-0

[Event "Niedersachsen-ch A 2024"]
[Site "Verden Aller"]
[Date "2024.01.04"]
[Round "1.20"]
[White "Stiller, Maximilian"]
[Black "Stoy, Ulf"]
[Result "0-1"]
[ECO "B06"]
[WhiteElo "1786"]
[BlackElo "1985"]
[Annotator "RC"]
[PlyCount "118"]
[EventDate "2024.01.01"]
[EventType "swiss"]
[EventCountry "GER"]
[SourceTitle "playchess.com"]
[Source "ChessBase"]
[SourceQuality "1"]
[TimeControl "40/5400+30:1800+30"]

1. Nf3 {[%emt 0:00:03]} g6 {[%emt 0:00:16]} 2. d4 {[%emt 0:00:53]} Bg7 {[%emt 0:00:11]} 3. e4 {[%emt 0:00:20]} d6 {[%emt 0:00:28]} 4. Nc3 {[%emt 0:00:17]} c6 {[%emt 0:01:05]} 5. Be3 {[%emt 0:00:19]} b5 {[%emt 0:01:11]} 6. Bd3 {[%emt 0:02:50]} Nd7 {[%emt 0:03:00]} 7. Qd2 {[%emt 0:00:51]} Qc7 {[%emt 0:02:24]} 8. a3 {[%emt 0:06:07]} a6 {[%emt 0:00:21]} 9. O-O {[%emt 0:02:59]} Ngf6 {[%emt 0:02:11]} 10. Bh6 {[%emt 0:04:06]} O-O {[%emt 0:00:39]} 11. Rfe1 {[%emt 0:02:01]} e5 {[%emt 0:02:17]} 12. Rad1 {[%emt 0:03:37]} Bb7 {[%emt 0:04:04]} 13. Bxg7 {[%emt 0:06:45]} Kxg7 {[%emt 0:00:03]} 14. Bf1 {[%emt 0:08:09]} Rae8 {[%emt 0:05:23]} 15. dxe5 {[%emt 0:02:25]} dxe5 {[%emt 0:00:07]} 16. Qg5 {[%emt 0:03:27]} h6 {[%emt 0:04:01]} 17. Qe3 {[%emt 0:03:19]} Re7 {[%emt 0:15:01]} 18. h3 {[%emt 0:01:06]} Rfe8 {[%emt 0:00:35]} 19. Rd2 {[%emt 0:00:38]} Qb6 {[%emt 0:11:11]} 20. Qxb6 {[%emt 0:04:44]} Nxb6 {[%emt 0:01:33]} 21. Rd6 {[%emt 0:01:33]} Nc8 {[%emt 0:02:47]} 22. Rd2 {[%emt 0:01:17]} c5 {[%emt 0:00:16]} 23. Nd5 {[%emt 0:08:37]} Bxd5 {[%emt 0:00:25]} 24. exd5 {[%emt 0:00:11]} Nd6 {[%emt 0:00:14]} 25. Nh2 {[%emt 0:03:01]} Nd7 {[%emt 0:03:44]} 26. a4 {[%emt 0:05:30]} f5 {[%emt 0:08:12]} 27. axb5 {[%emt 0:00:08]} axb5 {[%emt 0:00:03]} 28. Ra1 {[%emt 0:00:15]} Rb8 {[%emt 0:00:55]} 29. Ra7 {[%emt 0:03:01]} Kf6 {[%emt 0:00:55]} 30. Rd1 {[%emt 0:01:16]} Rb6 {[%emt 0:05:06]} 31. Rda1 {[%emt 0:01:36]} Nb8 {[%emt 0:10:50]} 32. Nf3 {[%emt 0:03:17]} Rxa7 {[%emt 0:01:19]} 33. Rxa7 {[%emt 0:00:03]} e4 {[%emt 0:03:21]} 34. Nd2 {[%emt 0:00:24]} c4 {[%emt 0:05:16]} 35. h4 {[%emt 0:02:14]} Ke5 {[%emt 0:01:32]} 36. h5 {[%emt 0:01:54]} gxh5 {[%emt 0:00:48]} 37. Rh7 {[%emt 0:00:06]} Kxd5 {[%emt 0:00:37]} 38. Rxh6 {[%emt 0:00:22]} Ra6 {[%emt 0:01:07]} 39. Rxh5 {[%emt 0:00:46]} Nd7 {[%emt 0:02:40]} 40. b3 {[%emt 0:04:09]} Ra1 {[%emt 0:01:29]} 41. Rh3 {[%emt 0:35:08]} Rd1 {[%emt 0:31:05]} 42. bxc4+ {[%emt 0:09:28]} bxc4 {[%emt 0:00:17]} 43. Nb3 {[%emt 0:00:00]} cxb3 {[%emt 0:00:00]} 44. cxb3 {[%emt 0:00:00]} Ne5 {[%emt 0:00:00]} 45. Rc3 {[%emt 0:00:00]} f4 {[%emt 0:00:00]} 46. b4 {[%emt 0:00:00]} Nec4 {[%emt 0:00:00]} 47. f3 {[%emt 0:00:00]} Kd4 {[%emt 0:00:00]} 48. Rc2 {[%emt 0:00:00]} Nd2 {[%emt 0:00:00]} 49. fxe4 {[%emt 0:00:00]} N6xe4 {[%emt 0:00:00]} 50. b5 {[%emt 0:00:00]} Nxf1 {[%emt 0:00:00]} 51. g4 {[%emt 0:00:00]} Ne3+ {[%emt 0:00:00]} 52. Kh2 {[%emt 0:00:00]} Nxc2 {[%emt 0:00:00]} 53. b6 {[%emt 0:00:00]} Ng5 {[%emt 0:00:00]} 54. b7 {[%emt 0:00:00]} Rb1 {[%emt 0:00:00]} 55. b8=Q {[%emt 0:00:00]} Rxb8 {[%emt 0:00:00]} 56. Kg2 {[%emt 0:00:00]} Ne3+ {[%emt 0:00:00]} 57. Kf2 {[%emt 0:00:00]} Rb2+ {[%emt 0:00:00]} 58. Kg1 {[%emt 0:00:00]} Nf3+ {[%emt 0:00:00]} 59. Kh1 {[%emt 0:00:00]} Rh2# {[%emt 0:00:00]} 0-1